{"text_format":"3","workbook":"xlsx","n_sheets":1,"sheets":["Ejemplo 10"],"not_rendered":{"macros":1,"external_links":1,"defined_names":7},"read":"whole","date_system":"1900"}

{"sheet":"Ejemplo 10","index":0,"n_rows":57,"n_cols":4,"rows_kept":57}
["Ejemplo 10: Fecha del próximo cumpleaños, fecha del último cumpleaños, edad en las dos fechas"]
[]
["Fecha de cumpleaños:"]
[null,"Datos del usuario","Fórmula de validación","Fórmula usada"]
["Año",1947,{"$f":"IF(AND(B5>1899,B5<10000,INT(B5)=B5),0,\"Año no válido\")","v":0},{"$f":"GETFORMULA(C5)","v":"=SI(Y(B5>1899;B5<10000;ENTERO(B5)=B5);0;\"Año no válido\")"}]
["Mes","Feb",{"$f":"IF(ISERROR(VLOOKUP(B6,TablaMeses,1,FALSE)),\"Mes no válido\",0)","v":0},{"$f":"GETFORMULA(C6)","v":"=SI(ESERROR(BUSCARV(B6;MonthsNamesTable2;1;FALSO));\"Mes no válido\";0)"}]
["Día",15,{"$f":"IF(AND(B7>=1,B7<=31,INT(B7)=B7),0,\"Día no válido\")","v":0},{"$f":"GETFORMULA(C7)","v":"=SI(Y(B7>=1;B7<=31;ENTERO(B7)=B7);0;\"Día no válido\")"}]
[]
["Fecha seleccionada",null,{"$f":"DATE(B5,VLOOKUP(B6,TablaMeses,3,FALSE),B7)","v":"1947-02-15"}]
[{"$f":"\"Fórmula usada en \"&ADDRESS(ROW(C9),COLUMN(C9),4)&\"   >>>   \"&GETFORMULA(C9)","v":"Fórmula usada en C9   >>>   =FECHA(B5;BUSCARV(B6;TablaMeses;3;FALSO);B7)"}]
[]
["Validación: >>>",null,{"$f":"IF(MONTH(C9)=VLOOKUP(B6,TablaMeses,3,FALSE),0,\"La fecha no existe!\")","v":0}]
[{"$f":"\"Fórmula usada en \"&ADDRESS(ROW(C12),COLUMN(C12),4)&\"   >>>   \"&GETFORMULA(C12)","v":"Fórmula usada en C12   >>>   =SI(MES(C9)=BUSCARV(B6;TablaMeses;3;FALSO);0;\"La fecha no existe!\")"}]
[]
["Fecha base para cálcular:"]
[null,"Ingreso del usuario","Fórmula de validación","Fórmula usada"]
["Año",2013,{"$f":"IF(AND(B17>1899,B17<10000,INT(B17)=B17),0,\"Año no válido\")","v":0},{"$f":"GETFORMULA(C17)","v":"=SI(Y(B17>1899;B17<10000;ENTERO(B17)=B17);0;\"Año no válido\")"}]
["Mes","Feb",{"$f":"IF(ISERROR(VLOOKUP(B18,TablaMeses,1,FALSE)),\"Mes no válido\",0)","v":0},{"$f":"GETFORMULA(C18)","v":"=SI(ESERROR(BUSCARV(B18;TablaMeses;1;FALSO));\"Mes no válido\";0)"}]
["Día",1,{"$f":"IF(AND(B19>=1,B19<=31,INT(B19)=B19),0,\"Día no válido\")","v":0},{"$f":"GETFORMULA(C19)","v":"=SI(Y(B19>=1;B19<=31;ENTERO(B19)=B19);0;\"Día no válido\")"}]
[]
["Fecha seleccionada",null,{"$f":"DATE(B17,VLOOKUP(B18,TablaMeses,3,FALSE),B19)","v":"2013-02-01"}]
[{"$f":"\"Fórmula usada en \"&ADDRESS(ROW(C21),COLUMN(C21),4)&\"   >>>   \"","v":"Fórmula usada en C21   >>>   "}]
[{"$f":"GETFORMULA(C21)","v":"=FECHA(B17,BUSCARV(B18,MonthsNamesTable2,3,FALSO),B19)"}]
[]
["Validar: >>>",null,{"$f":"IF(MONTH(C21)=VLOOKUP(B18,TablaMeses,3,FALSE),0,\"La fecha no existe!\")","v":0}]
[{"$f":"\"Fórmula usada en \"&ADDRESS(ROW(C25),COLUMN(C25),4)&\"   >>>   \"","v":"Fórmula usada en C25   >>>   "}]
[{"$f":"GETFORMULA(C25)","v":"=SI(MES(C21)=BUSCARV(B18,MonthsNamesTable2,3,FALSO),0,\"La fecha no existe!\")"}]
[]
["a. Fecha de próximo cumpleaños",null,{"$f":"IF(DATE(YEAR(C21),MONTH(C21),DAY(C21))<DATE(YEAR(C21),MONTH(C9),DAY(C9)),DATE(YEAR(C21),MONTH(C9),DAY(C9)),DATE(YEAR(C21)+1,MONTH(C9),DAY(C9)))","v":"2013-02-15"}]
[{"$f":"\"Fórmula usada en \"&ADDRESS(ROW(C29),COLUMN(C29),4)&\"   >>>   \"","v":"Fórmula usada en C29   >>>   "}]
[{"$f":"GETFORMULA(C29)","v":"=SI(FECHA(AÑO(C21);MES(C21);DIA(C21))<FECHA(AÑO(C21);MES(C9);DIA(C9));FECHA(AÑO(C21);MES(C9);DIA(C9));FECHA(AÑO(C21)+1;MES(C9);DIA(C9)))"}]
[]
["b. Edad en el siguiente cumpleaños:",null,{"$f":"YEAR(C29)-YEAR(C9)","v":66},"años"]
[{"$f":"\"Fórmula usada en \"&ADDRESS(ROW(C33),COLUMN(C33),4)&\"   >>>   \"","v":"Fórmula usada en C33   >>>   "}]
[{"$f":"GETFORMULA(C33)","v":"=AÑO(C29)-AÑO(C9)"}]
[]
["c. Fecha del último cumpleaños",null,{"$f":"IF(DATE(YEAR(C21),MONTH(C21),DAY(C21))<DATE(YEAR(C21),MONTH(C9),DAY(C9)),DATE(YEAR(C21)-1,MONTH(C9),DAY(C9)),DATE(YEAR(C21),MONTH(C9),DAY(C9)))","v":"2012-02-15"}]
[{"$f":"\"Fórmula usada en \"&ADDRESS(ROW(C37),COLUMN(C37),4)&\"   >>>   \"","v":"Fórmula usada en C37   >>>   "}]
[{"$f":"GETFORMULA(C37)","v":"=SI(FECHA(AÑO(C21);MES(C21);DIA(C21))<FECHA(AÑO(C21);MES(C9);DIA(C9));FECHA(AÑO(C21)-1;MES(C9);DIA(C9));FECHA(AÑO(C21);MES(C9);DIA(C9)))"}]
[]
["d. Edad en el último cumpleaños:",null,{"$f":"YEAR(C37)-YEAR(C9)","v":65},"años"]
[{"$f":"\"Fórmula usada en \"&ADDRESS(ROW(C41),COLUMN(C41),4)&\"   >>>   \"","v":"Fórmula usada en C41   >>>   "}]
[{"$f":"GETFORMULA(C41)","v":"=AÑO(C37)-AÑO(C9)"}]
[]
["Tabla Mes Nombre (Usada en las siguiente fórmulas BUSCARV)"]
["Ene","Enero",1]
["Feb","Febrero",2]
["Mar","Marzo",3]
["Abr","Abril",4]
["May","Mayo",5]
["Jun","Junio",6]
["Jul","Julio",7]
["Ago","Agosto",8]
["Sep","Septiembre",9]
["Oct","Octubre",10]
["Nov","Noviembre",11]
["Dic","Diciembre",12]